bitfinex/quotes_ETHUSD_20260113
["timestamp","ask_amount","ask_price","bid_price","bid_amount"]
[1768284461713,6.64670761,3127.1,3125.7,4.54021622]
[1768284461914,3.19805558,3126.9,3125.7,4.54021622]
[1768284462521,3.19805558,3126.9,3125.7,7.73949958]
[1768284462707,0.32300404,3126.8,3125.7,7.73949958]
[1768284462909,0.03198479,3127.0,3125.7,7.73949958]
[1768284463115,3.1973272,3127.7,3125.7,7.73949958]
[1768284463116,1.17038045,3127.8,3126.0,1.08796294]
[1768284463424,1.45336524,3127.7,3126.0,1.08796294]
[1768284463835,1.45336524,3127.7,3125.8,0.03199181]
[1768284464118,1.17038045,3126.8,3125.7,0.002]
[1768284464294,1.4613587,3126.7,3125.7,0.002]
[1768284466092,3.19836243,3126.6,3125.7,0.002]
[1768284466312,3.19836243,3126.6,3124.8,1.08958079]
[1768284466313,0.000806,3125.8,3124.8,1.08958079]
[1768284466616,0.000806,3125.5,3125.1,3.19629172]
[1768284466825,0.000806,3125.8,3125.0,3.19997606]
[1768284466990,0.29098464,3126.2,3125.4,0.00080608]
[1768284467193,1.17038045,3126.3,3125.4,0.00080608]
[1768284467401,0.03998208,3126.4,3125.6,0.002]
[1768284467711,0.03998336,3126.3,3125.6,0.002]
[1768284468600,1.21036381,3126.3,3125.6,0.002]
[1768284468802,0.46597211,3126.5,3125.6,0.002]
[1768284469007,0.251,3126.7,3125.6,1.08996294]
[1768284469203,0.03997953,3126.6,3125.6,0.002]
[1768284470440,3.19846473,3126.5,3125.6,0.002]
[1768284470737,0.03998208,3126.4,3125.6,0.002]
[1768284471937,3.19827877,3126.7,3125.6,0.002]
[1768284472137,0.29097953,3126.6,3125.6,0.002]
[1768284472700,3.19846473,3126.5,3125.6,0.002]
[1768284472902,0.03998208,3126.4,3125.6,0.002]
[1768284473740,0.47684417,3126.7,3125.6,1.08996294]
[1768284473933,6.87349873,3126.7,3125.6,1.08996294]
[1768284474127,0.68734987,3126.6,3125.6,0.002]
[1768284474329,0.0399808,3126.5,3125.6,0.002]
[1768284474829,3.23851816,3126.5,3125.6,0.002]
[1768284476935,0.0399808,3126.5,3125.6,0.002]
[1768284477358,3.23845638,3126.5,3125.6,0.002]
[1768284477542,0.39258063,3126.4,3125.6,0.002]
[1768284479923,0.251,3126.7,3125.6,1.08996294]
[1768284480153,0.001,3126.1,3125.6,1.08996294]
[1768284480450,3.44915786,3126.8,3125.6,1.08996294]
[1768284480616,0.03997825,3126.7,3125.6,1.08996294]
[1768284481240,3.44915786,3126.8,3125.7,3.19928336]
[1768284481442,0.70470184,3126.7,3125.7,3.19928336]
[1768284482150,0.70470184,3126.7,3125.8,1.08796294]
[1768284482443,0.66472359,3126.7,3125.8,1.08796294]
[1768284483148,0.251,3126.8,3125.8,1.08796294]
[1768284483377,1.17038045,3127.9,3126.5,6.84094666]
[1768284483585,1.42138045,3128.2,3126.6,1.33896294]
[1768284483868,6.39386188,3128.0,3126.6,1.33896294]
[1768284484023,0.0230091,3127.9,3126.6,1.33896294]
[1768284484224,0.6416871,3127.8,3126.7,1.08796294]
[1768284484450,0.0230091,3127.7,3126.7,1.08796294]
[1768284485051,0.6416871,3127.8,3126.7,1.08796294]
[1768284485353,4.36720233,3128.2,3127.0,3.1979533]
[1768284485645,3.19682188,3128.2,3127.0,7.50780648]
[1768284486539,3.19666086,3128.3,3127.1,1.11189988]
[1768284487359,3.19666086,3128.3,3127.2,4.30964866]
[1768284487565,3.96738133,3128.3,3127.2,4.30964866]
[1768284487766,0.77072047,3128.3,3127.2,7.75839744]
[1768284487953,0.79372957,3128.3,3127.3,1.11189988]
[1768284488150,0.0230091,3128.3,3127.3,1.11189988]
[1768284488659,3.1964495,3128.5,3127.3,1.11189988]
[1768284489736,3.1964495,3128.5,3127.4,3.19754428]
[1768284490943,3.1964495,3128.5,3127.4,4.30944416]
[1768284491556,0.0230091,3128.4,3127.4,4.30944416]
[1768284491765,0.32194586,3128.3,3127.4,4.30944416]
[1768284492132,0.001,3128.2,3127.4,4.30944416]
[1768284493466,0.001,3128.2,3127.5,1.11189988]
[1768284493886,0.001,3128.2,3127.3,6.39729306]
[1768284494029,0.001,3128.2,3127.4,1.1199862]
[1768284494229,0.001,3128.2,3127.6,1.1199862]
[1768284494536,0.001,3128.2,3127.8,1.1199862]
[1768284495958,0.001,3128.2,3127.8,4.31708233]
[1768284496161,0.02384844,3128.7,3127.8,4.31708233]
[1768284496459,0.02384844,3128.7,3127.8,7.51421769]
[1768284496654,0.00083934,3128.7,3127.9,1.1199862]
[1768284496861,0.02384844,3128.7,3127.9,1.1199862]
[1768284498360,0.02384844,3128.7,3127.9,4.31699766]
[1768284499168,0.02384844,3128.7,3128.0,1.1199862]
[1768284500384,0.00083934,3128.7,3128.0,1.1199862]
[1768284500553,0.32284017,3128.7,3128.0,1.1199862]
[1768284505287,0.002,3128.4,3128.0,1.1199862]
[1768284507492,0.41,3128.1,3127.4,1.3709862]
[1768284507691,0.2608547,3128.1,3127.4,4.56852033]
[1768284508192,1.06755557,3128.1,3127.3,0.002]
[1768284509687,1.06755557,3128.0,3127.3,0.002]
[1768284509888,1.49400402,3127.9,3127.3,0.002]
[1768284510388,1.06755557,3127.8,3127.3,0.002]
[1768284510592,1.06755557,3127.8,3127.0,0.253]
[1768284510790,1.06755557,3127.8,3127.0,0.002]
[1768284510981,0.42644845,3127.9,3126.7,0.251]
[1768284511165,1.06755557,3127.8,3126.7,3.90937109]
[1768284512163,1.06755557,3127.7,3126.8,3.19815216]
[1768284512458,3.19720133,3127.8,3126.9,1.1199862]
[1768284514095,0.49,3127.7,3126.9,1.1199862]
[1768284516467,3.6872623,3127.7,3126.9,1.1199862]
[1768284516799,4.42063774,3127.7,3126.9,1.1199862]
[1768284517921,1.22337544,3127.7,3126.9,1.1199862]
[1768284518409,4.42061851,3127.7,3127.2,0.001]
[1768284520913,1.22337544,3127.7,3127.2,0.001]
[1768284521090,4.42061401,3127.7,3127.2,0.001]
[1768284521693,1.22337544,3127.7,3127.2,0.001]
[1768284522312,4.42062149,3127.7,3127.2,0.001]
[1768284525506,1.22337544,3127.7,3127.2,0.001]
[1768284525705,4.42061606,3127.7,3127.2,0.001]
[1768284529133,3.93061606,3127.7,3127.2,0.001]
[1768284529832,0.001,3127.4,3127.2,0.001]
[1768284531255,0.49,3127.3,3127.2,0.001]
[1768284532122,1.30710073,3128.1,3127.3,1.11728473]
[1768284532328,1.30710073,3128.1,3127.4,4.91203503]
[1768284532722,1.07910983,3128.0,3127.2,5.31609191]
[1768284532926,1.07910983,3128.0,3127.2,4.91303503]
[1768284533304,1.07910983,3128.0,3127.2,0.001]
[1768284534199,1.05610073,3127.8,3127.2,0.001]
[1768284534404,0.0230091,3127.7,3127.2,0.001]
[1768284537052,1.07910983,3127.7,3127.2,0.001]
[1768284537256,1.4837295,3127.6,3126.9,0.249]
[1768284537554,1.05610073,3127.6,3126.9,0.249]
[1768284537952,0.0230091,3127.7,3126.9,1.36628473]
[1768284538322,0.0230091,3127.7,3126.9,4.56432806]
[1768284539253,1.07910983,3127.7,3126.9,4.56432806]
[1768284539451,1.07910983,3127.7,3126.9,0.249]
[1768284539754,1.05610073,3127.6,3126.9,0.249]
[1768284541433,1.05610073,3127.6,3127.2,0.001]
[1768284541859,0.002,3127.4,3127.2,0.001]
[1768284542420,1.05610073,3127.5,3126.8,0.03198157]
[1768284542625,1.05610073,3127.5,3126.7,0.251]
[1768284544643,1.05610073,3127.5,3126.7,3.44922248]
[1768284544837,1.07910983,3127.5,3126.7,3.44922248]
[1768284547132,1.07910983,3127.5,3126.7,3.19822248]
[1768284547333,1.07910983,3127.5,3126.8,0.251]
[1768284548559,1.07910983,3127.5,3126.8,3.4491181]
[1768284548734,1.05610073,3127.5,3126.8,3.4491181]
[1768284548936,0.0230091,3127.6,3126.9,1.0310418]
[1768284549561,1.0604175,3127.5,3126.8,0.251]
[1768284550454,0.0230091,3127.6,3126.8,4.48017321]
[1768284551038,0.0230091,3127.6,3126.9,0.251]
[1768284552038,1.0624175,3127.7,3126.9,4.92811442]
[1768284552561,1.0624175,3127.7,3126.9,4.67711442]
[1768284552762,1.0624175,3127.7,3126.9,4.92811442]
[1768284553965,1.0624175,3127.7,3127.0,0.002]
[1768284554138,0.001,3127.2,3127.0,0.002]
[1768284554340,1.0624175,3127.7,3127.0,0.002]
[1768284554540,1.07568295,3127.6,3127.0,0.002]
[1768284555073,1.07568295,3127.4,3127.0,0.002]
[1768284555244,1.07568295,3127.2,3127.0,0.002]
[1768284556668,1.07568295,3127.2,3126.3,1.06718299]
[1768284556669,1.07568295,3127.4,3126.1,4.26595947]
[1768284556870,1.07568295,3127.2,3126.2,0.251]
[1768284558072,1.07568295,3127.0,3126.3,3.19866935]
[1768284559562,1.07568295,3127.0,3125.9,1.06718299]
[1768284559756,1.07568295,3127.0,3126.0,0.251]
[1768284560077,1.07568295,3126.7,3126.0,0.251]
[1768284565643,3.22321432,3126.8,3126.0,1.31818299]
[1768284565848,1.07568295,3126.7,3126.0,0.251]
[1768284567273,1.07568295,3126.7,3126.3,0.002]
[1768284567879,1.07568295,3126.6,3126.3,0.002]
[1768284568076,3.22328004,3126.7,3126.3,0.002]
[1768284568077,1.07568295,3126.4,3126.3,0.002]
[1768284568277,1.06545012,3126.4,3126.3,0.002]
[1768284568448,4.27387488,3126.8,3126.3,0.002]
[1768284569873,0.0250091,3126.7,3126.3,0.002]
[1768284570263,4.27387488,3126.8,3126.3,0.002]
[1768284570465,5.12087364,3126.8,3126.3,0.002]
[1768284570669,0.0250091,3126.7,3126.3,0.002]
[1768284572464,5.12087364,3126.8,3126.3,0.002]
[1768284574194,1.92268171,3126.8,3126.3,0.002]
[1768284575095,4.72960779,3127.3,3126.3,1.07744141]
[1768284575297,0.251,3126.9,3126.3,1.07744141]
[1768284576263,1.33046251,3127.1,3126.3,1.07744141]
[1768284577498,1.07946251,3127.0,3126.3,1.07744141]
[1768284578297,1.07946251,3127.1,3126.3,1.07744141]
[1768284578594,0.47742357,3127.3,3126.3,1.07744141]
[1768284578810,1.07946251,3127.4,3126.4,1.32644141]
[1768284579592,0.001,3126.8,3126.5,3.19846473]
[1768284579783,1.07946251,3127.4,3126.7,1.07544141]
[1768284583107,1.07946251,3127.3,3126.5,4.27390614]
[1768284583405,1.07946251,3127.3,3126.5,1.07544141]
[1768284583897,1.07946251,3127.3,3126.6,0.45249693]
[1768284585820,4.2771149,3127.3,3126.6,0.45249693]
[1768284588691,4.302124,3127.3,3126.6,0.45249693]
[1768284589122,3.22266149,3127.3,3126.7,1.07544141]
[1768284589429,3.19757551,3127.4,3126.7,1.07544141]
[1768284589617,4.3019298,3127.5,3126.7,1.07544141]
[1768284590409,0.0250091,3127.5,3126.8,1.07544141]
[1768284590601,0.251,3127.6,3126.8,1.07544141]
[1768284591924,0.001,3127.0,3126.8,1.07544141]
[1768284592229,0.251,3127.6,3126.9,1.07544141]
[1768284592425,0.251,3127.6,3127.0,0.42735845]
[1768284594335,0.0250091,3127.5,3127.0,0.42735845]
[1768284594531,0.0250091,3127.5,3126.7,1.07544141]
[1768284594710,4.52780358,3127.6,3126.7,1.07544141]
[1768284595414,4.52780358,3127.6,3126.8,4.91288985]
[1768284595924,1.07946251,3127.5,3126.8,4.91288985]
[1768284596547,1.07946251,3127.5,3126.8,5.98833126]
[1768284596714,0.251,3127.6,3126.9,1.07544141]
[1768284601756,0.251,3127.6,3127.0,1.07544141]
[1768284602646,0.251,3127.6,3127.0,5.98833126]
[1768284603546,0.001,3127.3,3127.1,1.07544141]
[1768284606837,0.002,3127.7,3127.3,1.09789517]
[1768284607626,0.002,3127.7,3127.4,6.01078502]
[1768284607838,0.002,3127.7,3127.4,1.09789517]
[1768284609743,0.002,3127.7,3127.5,6.01078502]
[1768284610037,0.002,3127.7,3127.5,1.09789517]
[1768284612059,0.002,3127.7,3127.3,6.01078502]
[1768284612363,0.002,3127.7,3127.5,6.01078502]
[1768284612534,0.002,3127.7,3127.5,1.09789517]
[1768284612934,0.002,3127.7,3127.3,4.91288985]
[1768284613130,0.002,3127.7,3127.3,1.09789517]
[1768284613436,0.002,3127.7,3127.3,6.01078502]
[1768284615480,0.001,3127.4,3126.9,1.10365545]
[1768284615639,1.0950818,3127.4,3126.3,0.002]
[1768284615964,1.0950818,3127.4,3126.4,0.251]
[1768284616402,1.0950818,3127.4,3126.3,0.002]
[1768284616403,1.0940818,3127.2,3126.3,0.002]
[1768284616662,1.0940818,3126.8,3126.3,0.002]
[1768284617078,0.001,3127.4,3126.5,1.10365545]
[1768284617244,0.001,3127.4,3127.0,4.91288985]
[1768284617565,0.001,3127.4,3126.8,6.0165453]
[1768284617775,0.001,3127.4,3127.0,6.0165453]
[1768284617976,0.002,3127.7,3127.2,6.0165453]
[1768284618537,0.002,3127.7,3126.5,4.91288985]
[1768284618538,6.00897165,3127.7,3126.5,4.91288985]
[1768284618736,1.0940818,3127.5,3126.6,3.44929582]
[1768284618967,1.0940818,3127.5,3126.7,3.19823179]
[1768284619171,1.0940818,3127.5,3126.8,0.45528872]
[1768284619672,4.31643813,3127.6,3126.8,0.45528872]
[1768284619860,1.0940818,3127.5,3126.8,0.45528872]
[1768284621373,0.0250091,3127.6,3126.8,0.45528872]
[1768284622971,0.0250091,3127.6,3126.8,1.55894417]
[1768284623274,0.0250091,3127.6,3126.9,0.40791038]
[1768284624872,4.29334775,3127.7,3126.9,0.40791038]
[1768284625373,4.29334775,3127.7,3126.9,1.51156583]
[1768284625538,0.002,3127.7,3127.3,6.0165453]
[1768284625744,1.0940818,3128.0,3127.4,0.48726416]
[1768284625942,3.19690333,3128.1,3127.4,0.03197544]
[1768284626158,4.29098513,3128.1,3127.3,6.0165453]
[1768284626359,4.29098513,3128.1,3127.3,1.10365545]
[1768284627477,0.001,3127.4,3127.3,1.10365545]
[1768284627675,4.29098513,3128.1,3127.3,1.10365545]
[1768284627840,5.55863824,3128.1,3127.3,1.10365545]
[1768284630099,5.58364734,3128.1,3127.3,1.10365545]
[1768284630414,1.0940818,3128.0,3127.3,1.10365545]
[1768284632510,4.29101707,3128.0,3127.3,1.10365545]
[1768284633828,7.48795234,3128.0,3127.3,1.10365545]
[1768284634030,0.77630524,3127.9,3127.3,1.10365545]
[1768284634735,5.0477115,3127.9,3127.1,1.29977261]
[1768284636616,1.82561976,3127.9,3127.1,1.29977261]
[1768284637533,1.07432362,3127.8,3127.1,1.29977261]
[1768284638030,3.94834899,3127.9,3127.1,1.29977261]
[1768284638239,1.07432362,3127.8,3127.1,1.29977261]
[1768284640345,1.07432362,3127.8,3127.4,0.002]
[1768284640542,0.001,3127.6,3127.4,0.002]
[1768284645518,4.2962008,3128.1,3127.4,1.04877261]
[1768284645717,4.2962008,3128.1,3127.4,0.002]
[1768284646037,1.07432362,3128.0,3127.4,0.002]
[1768284646235,1.84871644,3128.0,3127.4,0.002]
[1768284648252,1.84871644,3128.0,3127.5,1.04677261]
[1768284648253,0.77439282,3128.0,3127.5,1.04677261]
[1768284648455,4.27118353,3128.1,3127.4,4.91488985]
[1768284648754,4.27118353,3128.1,3127.4,0.002]
[1768284649049,1.07432362,3128.0,3127.4,0.002]
[1768284653459,0.001,3127.7,3127.4,0.002]
[1768284656248,3.19860746,3128.4,3127.7,1.04677261]
[1768284656463,1.07432362,3128.3,3127.4,0.002]
[1768284659066,1.07432362,3128.1,3127.4,0.002]
[1768284662438,1.09933272,3128.0,3127.4,0.002]
[1768284662640,1.07432362,3127.8,3127.4,0.002]
[1768284664177,0.9,3127.5,3127.4,0.002]
[1768284671050,4.09744204,3127.5,3127.4,0.002]
[1768284671386,2.47932313,3127.5,3127.4,0.002]
[1768284672179,5.67676517,3127.5,3127.4,0.002]
[1768284674889,2.47932313,3127.5,3127.4,0.002]
[1768284675191,5.67676517,3127.5,3127.4,0.002]
[1768284678389,5.67676517,3127.5,3127.1,0.002]
[1768284678595,0.57017743,3127.4,3127.1,0.002]
[1768284683285,1.09947369,3127.3,3127.1,0.002]
[1768284683483,1.12448279,3127.3,3127.1,0.002]
[1768284683797,1.09947369,3127.2,3127.1,0.002]
[1768284685699,4.2972598,3127.2,3126.5,1.01164427]
[1768284685907,1.09947369,3127.0,3126.3,1.01164427]
[1768284686102,1.09947369,3127.0,3126.1,3.44984316]
[1768284686103,1.09947369,3127.0,3126.0,4.21060438]
[1768284686395,0.68321574,3127.1,3126.2,1.01164427]
[1768284686598,0.7078788,3127.0,3126.2,1.01164427]
[1768284687603,0.68321574,3127.1,3126.2,1.01164427]
[1768284687771,3.22279521,3127.2,3126.3,1.01164427]
[1768284695023,3.22279521,3127.2,3125.6,3.19934094]
[1768284695024,1.09769621,3127.1,3125.4,1.00468961]
[1768284695178,1.12270531,3127.0,3126.1,1.00388353]
[1768284695377,1.12270531,3127.0,3126.2,1.00388353]
[1768284695774,1.87453306,3127.0,3126.2,1.00388353]
[1768284697311,5.07256984,3127.0,3126.2,1.00388353]
[1768284697918,3.97487363,3127.0,3126.2,1.00388353]
[1768284701016,1.09769621,3126.9,3126.5,0.002]
[1768284702121,0.75182775,3127.0,3126.5,1.00588353]
[1768284702288,3.22286167,3127.1,3126.5,1.00588353]
[1768284703011,0.0250091,3127.1,3126.5,1.00588353]
[1768284703318,3.22288903,3127.1,3126.5,1.00588353]
[1768284703820,3.44878027,3127.2,3126.5,1.00588353]
[1768284704011,0.0250091,3127.1,3126.5,1.00588353]
[1768284704488,3.19778027,3127.2,3126.5,1.00588353]
[1768284704686,4.02920186,3127.2,3126.5,1.00588353]
[1768284706514,4.05421096,3127.2,3126.5,1.00588353]
[1768284707028,4.02920186,3127.2,3126.5,1.00588353]
[1768284707506,0.0250091,3127.1,3126.5,1.00588353]
[1768284708108,1.09769621,3127.0,3126.1,0.002]
[1768284708304,1.09769621,3126.8,3126.1,0.253]
[1768284708533,0.0250091,3126.7,3126.1,0.253]
[1768284710715,0.0250091,3126.7,3126.1,0.002]
[1768284711006,0.0250091,3126.7,3126.1,0.253]
[1768284711916,3.22327675,3126.7,3126.1,0.253]
[1768284712214,0.4571064,3126.7,3126.1,0.253]
[1768284713333,0.4571064,3126.7,3126.4,0.002]
[1768284714844,3.65538325,3126.7,3126.4,0.002]
[1768284715639,4.75307946,3126.7,3126.4,0.002]
[1768284715947,1.09769621,3126.6,3126.4,0.002]
[1768284719074,3.19801664,3127.0,3126.4,0.002]
[1768284719219,4.03050728,3127.0,3126.4,0.002]
[1768284719620,5.12820349,3127.0,3126.4,0.002]
[1768284725449,0.001,3126.7,3126.4,0.002]
[1768284726166,0.9,3126.5,3126.4,0.002]
[1768284727669,0.9,3126.5,3126.4,1.01171247]
[1768284729271,0.82709545,3126.5,3126.4,1.01171247]
[1768284729440,0.001,3126.7,3126.5,1.00971247]
[1768284731574,0.001,3126.7,3126.4,0.42304391]
[1768284731882,0.001,3126.7,3126.5,1.00971247]
[1768284732676,0.001,3126.7,3126.4,0.002]
[1768284732877,0.001,3126.7,3126.4,1.01171247]
[1768284737576,0.001,3126.7,3126.4,1.43275964]
[1768284738678,1.05428338,3127.1,3126.4,0.42304717]
[1768284738886,1.02927428,3127.0,3126.4,0.42304717]
[1768284739192,1.02927428,3127.0,3126.4,0.002]
[1768284743984,3.22286044,3127.1,3126.4,0.002]
[1768284743985,0.0250091,3127.1,3126.4,1.03681135]
[1768284746264,3.22286564,3127.1,3126.4,1.03681135]
[1768284746462,0.9,3126.8,3126.4,1.03681135]
[1768284746761,0.88976848,3126.8,3126.4,1.03681135]
[1768284749297,0.88976848,3126.8,3126.7,0.002]
[1768284749467,0.89076848,3126.8,3126.7,0.002]
[1768284753591,1.02927428,3126.5,3125.7,1.03481135]
[1768284753792,1.02927428,3126.5,3125.7,1.70922746]
[1768284753997,1.02927428,3126.5,3125.8,4.9149902]
[1768284754388,1.02927428,3126.5,3125.8,5.94980155]
[1768284754893,0.91577758,3126.8,3126.1,5.93653909]
[1768284755796,4.11393777,3126.8,3126.1,5.93653909]
[1768284757306,5.17158714,3126.8,3126.1,1.02154889]
[1768284760628,1.97342695,3126.8,3126.1,1.02154889]
[1768284760929,0.89076848,3126.8,3126.2,1.02154889]
[1768284761282,0.001,3126.8,3126.2,1.02154889]
[1768284761524,0.001,3126.8,3126.4,1.02154889]
[1768284761824,0.001,3126.8,3126.6,1.02154889]
[1768284762402,0.0250091,3127.2,3126.6,1.02154889]
[1768284762585,1.5106903,3127.2,3126.5,0.251]
[1768284767118,1.5106903,3127.2,3126.5,1.27254889]
[1768284767322,1.08265847,3127.2,3126.5,1.27254889]
[1768284768620,1.08265847,3127.2,3126.5,6.18753909]
[1768284769428,1.05764937,3127.2,3126.5,6.18753909]
[1768284772923,4.25539941,3127.2,3126.5,1.27254889]
[1768284773130,4.25539941,3127.2,3126.5,6.18753909]
[1768284774228,0.001,3126.9,3126.5,6.18753909]
[1768284774430,0.001,3126.9,3126.5,6.6109552]
[1768284774826,0.001,3126.9,3126.6,0.03198362]
[1768284775025,0.001,3126.9,3126.6,1.02154889]
[1768284782136,0.0250091,3127.3,3126.7,1.02154889]
[1768284782358,0.002,3127.7,3127.3,1.02154889]
[1768284782912,0.002,3128.0,3127.4,1.02154889]
[1768284783218,0.002,3128.0,3127.6,1.02154889]
[1768284783655,1.05964937,3128.4,3127.7,4.21878647]
[1768284784312,0.002,3128.4,3127.7,4.21878647]
[1768284784512,0.002,3128.4,3127.7,4.64220258]
[1768284786667,0.002,3128.4,3127.8,4.23475679]
[1768284791222,0.002,3128.4,3127.8,1.03765011]
[1768284791756,0.002,3128.4,3127.8,4.23476838]
[1768284793355,1.01615873,3128.4,3127.7,3.62061965]
[1768284793522,1.01615873,3128.4,3127.8,0.43978299]
[1768284795738,1.01615873,3128.4,3127.7,3.19720354]
[1768284795927,1.01615873,3128.4,3127.6,4.23497251]
[1768284796257,0.9409437,3128.2,3126.9,0.98364821]
[1768284796550,0.9409437,3128.0,3127.1,3.19784599]
[1768284796752,0.9409437,3128.0,3127.1,3.51763059]
[1768284797823,0.9409437,3127.9,3127.1,3.51763059]
[1768284798030,0.9409437,3127.9,3127.1,0.08326957]
[1768284798232,0.9409437,3127.6,3126.8,0.002]
[1768284800066,0.9409437,3127.5,3126.8,0.002]
[1768284801030,0.251,3127.8,3126.8,0.002]
[1768284801031,0.9409437,3127.7,3126.8,0.002]
[1768284801933,0.9409437,3127.7,3126.8,3.20015786]
[1768284802881,0.9409437,3127.7,3126.9,0.98364821]
[1768284803043,0.9409437,3127.7,3127.0,0.03197953]
[1768284803656,0.9409437,3127.7,3126.9,0.98364821]
[1768284804183,0.9409437,3127.7,3127.0,3.1979533]
[1768284804345,0.9659528,3127.7,3126.8,0.002]
[1768284804732,0.9659528,3127.7,3126.8,3.20009198]
[1768284805232,0.9409437,3127.6,3126.8,0.002]
[1768284805433,0.9409437,3127.6,3126.8,3.200135]
[1768284806273,0.9409437,3127.6,3126.8,0.002]
[1768284809739,0.9659528,3127.5,3126.8,0.002]
[1768284809938,0.9409437,3127.3,3126.5,0.002]
[1768284810244,0.9409437,3127.1,3126.5,0.002]
[1768284815753,1.04427573,3127.0,3125.7,0.94861394]
[1768284816262,1.04427573,3127.0,3125.8,3.19917867]
[1768284816583,1.01926663,3126.8,3125.8,3.19917867]
[1768284816780,1.01926663,3126.6,3125.8,0.94861394]
[1768284819185,4.21763011,3126.6,3125.8,0.94861394]
[1768284820184,4.46842449,3126.8,3125.8,4.14779336]
[1768284820484,1.54050956,3126.7,3125.9,0.94861394]
[1768284821093,0.0250091,3126.7,3126.0,0.94861394]
[1768284822782,0.0250091,3126.7,3126.1,0.95061394]
[1768284823488,3.22327004,3126.7,3126.1,0.95061394]
[1768284824888,0.0250091,3126.7,3126.1,0.95061394]
[1768284825083,3.22327119,3126.7,3126.1,0.95061394]
[1768284827258,0.0250091,3126.7,3126.1,0.95061394]
[1768284827457,1.01926663,3127.2,3126.1,8.11467503]
[1768284827458,1.27026663,3127.1,3126.1,8.11467503]
[1768284827663,1.27026663,3127.1,3126.2,0.94861394]
[1768284829362,4.46814755,3127.1,3126.2,0.94861394]
[1768284831403,4.21726998,3127.0,3126.2,0.94861394]
[1768284832109,1.01926663,3126.9,3126.2,0.94861394]
[1768284832590,1.01926663,3126.9,3126.1,4.9158333]
[1768284832976,1.01926663,3126.9,3126.1,0.002]
[1768284834905,0.001,3126.7,3126.1,0.95061394]
[1768284837099,0.001,3126.7,3125.8,0.002]
[1768284837100,1.01926663,3126.4,3125.8,0.002]
[1768284837401,1.61257662,3126.3,3125.8,0.002]
[1768284837599,1.01926663,3126.3,3125.8,0.002]
[1768284837801,1.01926663,3126.5,3125.8,0.95061394]
[1768284838003,1.02026663,3126.7,3126.0,0.94861394]
[1768284838197,1.27126663,3126.7,3126.0,0.94861394]
[1768284838394,1.27126663,3126.7,3125.8,0.002]
[1768284838709,1.01926663,3126.5,3125.8,0.002]
[1768284839005,1.78606057,3126.5,3125.8,0.002]
[1768284839231,1.78606057,3126.5,3125.8,0.95061394]
[1768284840785,0.76679394,3126.5,3125.8,0.95061394]
[1768284840987,0.251,3126.6,3126.0,0.94861394]
[1768284841690,0.001,3126.7,3126.0,0.94861394]
[1768284843119,0.001,3126.7,3126.4,0.94861394]
[1768284846808,0.001,3126.7,3126.1,0.94095319]
[1768284847117,0.001,3126.7,3126.5,0.002]
[1768284850092,0.001,3126.7,3126.5,0.94295319]
[1768284850297,1.02008201,3126.7,3125.2,0.94295319]
[1768284850502,1.01908201,3126.6,3125.6,0.94095319]
[1768284850698,1.01908201,3126.6,3125.7,0.94095319]
[1768284850901,1.01908201,3126.4,3125.5,0.94295319]
[1768284851291,1.01908201,3126.4,3125.6,0.94095319]
[1768284851992,4.21767296,3126.4,3125.6,0.94095319]
[1768284860400,4.21767296,3126.4,3125.9,0.002]
[1768284860710,0.001,3126.4,3125.9,0.002]
[1768284862206,0.001,3126.4,3124.2,3.29793212]
[1768284862207,1.01430614,3125.7,3124.9,0.00280592]
[1768284862426,1.00572329,3125.7,3124.9,0.9496647]
[1768284863495,1.00572329,3125.7,3125.0,0.94685878]
[1768284863694,0.00080608,3125.8,3125.3,0.94685878]
[1768284867244,0.00080608,3125.8,3125.2,0.002]
[1768284868034,0.00080608,3125.8,3125.3,0.94685878]
[1768284870651,0.00080608,3125.8,3125.4,0.97885468]
[1768284870948,0.00080608,3125.8,3125.5,0.251]
[1768284871148,0.00080608,3125.8,3125.6,0.94685878]
[1768284872449,0.00080608,3125.8,3125.6,0.94885878]
[1768284872751,0.001,3126.1,3125.7,0.94685878]
[1768284873358,1.01530614,3126.1,3125.6,0.002]
[1768284873867,0.001,3126.1,3125.6,0.002]
[1768284877968,0.001,3126.1,3125.6,0.93720536]
[1768284878733,0.001,3126.1,3125.7,0.93520536]
[1768284880565,0.001,3126.1,3125.6,0.002]
[1768284884666,0.001,3126.1,3125.6,0.93720536]
[1768284886170,0.001,3125.8,3125.6,0.93720536]
[1768284888342,0.001,3126.1,3125.6,4.13656895]
[1768284888765,0.001,3126.1,3125.7,0.93520536]
[1768284890448,0.001,3126.1,3125.7,4.13448679]
[1768284891679,0.001,3126.1,3125.8,0.93520536]
[1768284891881,0.001,3126.7,3125.8,0.93520536]
[1768284892079,0.99380545,3127.3,3126.6,9.83232666]
[1768284892295,3.19856118,3128.4,3127.0,4.91616333]
[1768284892296,0.99380545,3127.5,3127.0,4.91616333]
[1768284892583,0.99380545,3127.5,3126.9,3.19805558]
[1768284892993,0.99380545,3127.8,3127.2,9.83232666]
[1768284893153,0.99380545,3128.0,3127.3,0.251]
[1768284893493,5.90996878,3127.9,3127.3,0.251]
[1768284893655,0.59099688,3127.8,3127.3,0.251]
[1768284894192,5.90996878,3127.9,3127.3,0.251]
[1768284896055,5.90996878,3127.5,3126.8,0.93520536]
[1768284896259,5.90996878,3127.5,3126.9,0.251]
[1768284896472,0.99380545,3127.5,3126.9,0.251]
[1768284896646,4.91616333,3127.7,3126.9,3.44905501]
[1768284896847,5.90996878,3127.7,3126.9,3.44905501]
[1768284897070,5.90996878,3127.7,3126.9,4.38426037]
[1768284898493,5.90996878,3127.7,3127.0,0.251]
[1768284898979,0.001,3127.6,3127.0,0.251]
[1768284900958,0.001,3127.6,3127.0,4.38413629]
[1768284901159,0.001,3127.6,3127.1,0.93520536]
[1768284901790,0.001,3127.6,3127.0,3.44893093]
[1768284902090,5.90642579,3127.3,3126.5,4.13364888]
[1768284902262,0.99380545,3127.2,3126.5,0.93520536]
[1768284902457,1.58444803,3127.2,3126.6,0.251]
[1768284902876,0.99380545,3127.2,3126.6,0.251]
[1768284903598,0.99380545,3127.2,3126.6,3.44935177]
[1768284904318,0.99380545,3127.5,3126.7,0.93520536]
[1768284904491,0.001,3127.6,3126.7,0.93520536]